fUSD/lending_fUSD_20250208
["ID","MTS","AMOUNT","RATE_DAILY","PERIOD"]
[352289588,1739028668810,-500.0,0.0001082,2]
[352289589,1739028668821,-500.0,0.0001082,2]
[352289590,1739028668830,-1088.42,0.0001082,2]
[352289591,1739028668840,-947.86,0.0001082,2]
[352289592,1739028668850,-1091.33,0.0001082,2]
[352289593,1739028668860,-500.0,0.0001082,2]
[352289594,1739028668870,-1317.62,0.0001082,2]
[352289595,1739028668880,-500.0,0.0001082,2]
[352289596,1739028668891,-787.07,0.0001082,2]
[352289597,1739028668900,-500.0,0.0001082,2]
[352289598,1739028668910,-593.57,0.0001082,2]
[352289599,1739028668919,-992.85,0.0001082,2]
[352289600,1739028668929,-508.17,0.0001082,2]
[352289601,1739028668939,-2552.46,0.0001082,2]
[352289602,1739028668948,-780.62,0.0001082,2]
[352289603,1739028668960,-548.15,0.0001082,2]
[352289604,1739028668969,-1122.93,0.0001082,2]
[352289605,1739028668979,-1101.79,0.0001082,2]
[352289606,1739028668989,-902.22,0.0001082,2]
[352289607,1739028668999,-657.05,0.0001082,2]
[352289608,1739028669008,-512.48,0.0001082,2]
[352289609,1739028669018,-500.0,0.0001082,2]
[352289610,1739028669028,-1120.42,0.0001082,2]
[352289611,1739028669037,-6693.6,0.0001082,2]
[352289612,1739028669047,-741.29,0.0001082,2]
[352289613,1739028669057,-1034.11,0.0001082,2]
[352289614,1739028669067,-675.65,0.0001082,2]
[352289615,1739028669077,-500.0,0.0001082,2]
[352289616,1739028669086,-581.86,0.0001082,2]
[352289617,1739028669096,-916.73,0.0001082,2]
[352289618,1739028669107,-731.99,0.0001082,2]
[352289619,1739028669117,-1466.25,0.0001082,2]
[352289620,1739028669127,-500.0,0.0001082,2]
[352289621,1739028669136,-597.7,0.0001082,2]
[352289622,1739028669146,-500.0,0.0001082,2]
[352289623,1739028669156,-500.0,0.0001082,2]
[352289624,1739028669166,-1297.02,0.0001082,2]
[352289625,1739028669176,-500.0,0.0001082,2]
[352289626,1739028669186,-1028.96,0.0001082,2]
[352289627,1739028669196,-3310.98,0.0001082,2]
[352289628,1739028669207,-500.0,0.0001082,2]
[352289629,1739028669218,-500.0,0.0001082,2]
[352289630,1739028669228,-917.91,0.0001082,2]
[352289631,1739028669238,-511.7,0.0001082,2]
[352289632,1739028669247,-500.0,0.0001082,2]
[352289633,1739028669258,-500.0,0.0001082,2]
[352289634,1739028669268,-643.43,0.0001082,2]
[352289635,1739028669278,-500.0,0.0001082,2]
[352289636,1739028669287,-539.85,0.0001082,2]
[352289637,1739028669297,-3319.49,0.0001082,2]
[352289638,1739028669306,-913.19,0.0001082,2]
[352289639,1739028669315,-500.0,0.0001082,2]
[352289640,1739028669325,-1143.68,0.0001082,2]
[352289641,1739028669335,-994.19,0.0001082,2]
[352289642,1739028669345,-954.06,0.0001082,2]
[352289643,1739028669354,-500.0,0.0001082,2]
[352289644,1739028669364,-1144.4,0.0001082,2]
[352289645,1739028669373,-500.0,0.0001082,2]
[352289646,1739028669383,-2477.27,0.0001082,2]
[352289647,1739028669393,-763.69,0.0001082,2]
[352289648,1739028669403,-806.5,0.0001082,2]
[352289649,1739028669412,-500.0,0.00010821,2]
[352289650,1739028669422,-500.0,0.00010821,2]
[352289651,1739028669431,-217.37074814,0.00010821,2]
[352289652,1739028669440,-638.23935353,0.00010821,2]
[352289653,1739028669449,-500.0,0.00010821,2]
[352289654,1739028669458,-500.0,0.00010821,2]
[352289655,1739028669467,-500.0,0.00010821,2]
[352289656,1739028669476,-500.0,0.00010821,2]
[352289657,1739028669486,-500.0,0.00010821,2]
[352289658,1739028669495,-500.0,0.00010821,2]
[352289659,1739028669504,-500.0,0.00010821,2]
[352289660,1739028669513,-500.0,0.00010821,2]
[352289661,1739028669522,-981.79,0.00010821,2]
[352289662,1739028669531,-500.0,0.00010821,2]
[352289663,1739028669540,-1014.37,0.00010821,2]
[352289664,1739028669550,-500.0,0.00010821,2]
[352289665,1739028669559,-1092.78,0.00010821,2]
[352289666,1739028669569,-618.07,0.00010821,2]
[352289667,1739028669581,-506.24,0.00010821,2]
[352289668,1739028669590,-500.0,0.00010821,2]
[352289669,1739028669599,-500.0,0.00010821,2]
[352289670,1739028669609,-1239.48,0.00010821,2]
[352289671,1739028669621,-1189.9,0.00010821,2]
[352289672,1739028669631,-1172.45,0.00010821,2]
[352289673,1739028669640,-500.0,0.00010821,2]
[352289674,1739028669649,-500.0,0.00010821,2]
[352289675,1739028669659,-942.36,0.00010821,2]
[352289676,1739028669669,-500.0,0.00010821,2]
[352289677,1739028669679,-500.0,0.00010821,2]
[352289678,1739028669688,-500.0,0.00010821,2]
[352289679,1739028669698,-639.26,0.00010821,2]
[352289680,1739028669709,-626.98,0.00010821,2]
[352289681,1739028669720,-27791.54881314,0.00010835,2]
[352289682,1739028669732,-1308682.57540602,0.0001088,2]
[352289683,1739028670083,-191515.28892841,0.0001088,2]
[352289684,1739028670296,-1442.0,0.0001088,2]
[352289685,1739028670546,-500.0,9.997e-05,2]
[352289686,1739028670557,-500.0,9.997e-05,2]
[352289687,1739028670567,-500.0,9.998e-05,2]
[352289688,1739028670578,-1110.31268894,0.0001088,2]
[352289689,1739028670603,-1417.3985,0.0001088,2]
[352289690,1739028670616,-405.555575,0.0001088,2]
[352289691,1739028670646,-47650.70191419,0.0001088,2]
[352289692,1739028670744,-797.49998,0.0001088,2]
[352289693,1739028671380,-365.87903978,9.997e-05,2]
[352289694,1739028671390,-500.0,9.998e-05,2]
[352289695,1739028671400,-500.0,0.00010134,2]
[352289696,1739028671637,-500.0,0.00010271,2]
[352289697,1739028671648,-500.0,0.00010408,2]
[352289698,1739028671660,-813.44072283,0.0001088,2]
[352289699,1739028671681,-500.0,0.00010545,2]
[352289700,1739028671690,-3801.586,0.0001088,2]
[352289701,1739028676437,-500.0,9.997e-05,2]
[352289702,1739028676463,-500.0,9.997e-05,2]
[352289703,1739028676486,-500.0,9.997e-05,2]
[352289704,1739028676510,-500.58993849,9.997e-05,2]
[352289705,1739028676536,-500.0,9.997e-05,2]
[352289706,1739028676559,-500.0,9.997e-05,2]
[352289707,1739028676587,-500.0,9.997e-05,2]
[352289708,1739028676610,-500.0,9.997e-05,2]
[352289709,1739028676635,-500.0,9.997e-05,2]
[352289710,1739028676660,-500.0,9.997e-05,2]
[352289711,1739028676685,-500.0,9.997e-05,2]
[352289712,1739028676713,-500.0,9.997e-05,2]
[352289713,1739028676736,-500.0,9.997e-05,2]
[352289714,1739028676762,-500.0,9.997e-05,2]
[352289715,1739028676787,-500.0,9.997e-05,2]
[352289716,1739028676811,-159.892241,9.997e-05,2]
[352289717,1739028676835,-500.0,9.997e-05,2]
[352289718,1739028676859,-500.0,9.997e-05,2]
[352289719,1739028676883,-598.25,9.997e-05,2]
[352289720,1739028676907,-500.0,9.997e-05,2]
[352289721,1739028676932,-500.0,9.997e-05,2]
[352289722,1739028676956,-500.0,9.997e-05,2]
[352289723,1739028676982,-261.96318208,9.997e-05,2]
[352289724,1739028677006,-500.0,9.997e-05,2]
[352289725,1739028677031,-160.598251,9.997e-05,2]
[352289726,1739028677056,-365.11,9.997e-05,2]
[352289727,1739028677081,-500.0,9.997e-05,2]
[352289728,1739028677108,-500.0,9.997e-05,2]
[352289729,1739028677133,-500.0,9.997e-05,2]
[352289730,1739028677158,-500.0,9.997e-05,2]
[352289731,1739028677184,-500.0,9.997e-05,2]
[352289732,1739028677213,-500.0,9.997e-05,2]
[352289733,1739028677237,-500.0,9.997e-05,2]
[352289734,1739028677261,-500.0,9.998e-05,2]
[352289735,1739028677285,-500.0,9.998e-05,2]
[352289736,1739028677309,-235.05279851,9.998e-05,2]
[352289737,1739028677338,-500.0,9.998e-05,2]
[352289738,1739028677363,-500.0,9.998e-05,2]
[352289739,1739028677387,-500.32820573,9.998e-05,2]
[352289740,1739028677412,-500.0,9.998e-05,2]
[352289741,1739028677439,-500.0,9.998e-05,2]
[352289742,1739028677464,-500.0,9.998e-05,2]
[352289743,1739028677489,-1191.55,9.998e-05,2]
[352289744,1739028677513,-500.0,9.998e-05,2]
[352289745,1739028677537,-500.0,9.998e-05,2]
[352289746,1739028677562,-500.0,9.998e-05,2]
[352289747,1739028677602,500.0,9.998e-05,2]
[352289748,1739028677894,500.0,9.997e-05,2]
[352289749,1739028677999,500.0,9.998e-05,2]
[352289750,1739028678049,500.0,9.997e-05,2]
[352289751,1739028678239,500.0,9.998e-05,2]
[352289752,1739028678627,1291.14,9.997e-05,2]
[352289753,1739028678659,1647.3812,8.851e-05,2]
[352289754,1739028680402,608.57,9.997e-05,2]
[352289755,1739028680434,719.38,9.997e-05,2]
[352289756,1739028680468,500.0,9.998e-05,2]
[352289757,1739028680698,500.0,9.998e-05,2]
[352289758,1739028680914,500.0,9.998e-05,2]
[352289759,1739028681645,1817.01,9.998e-05,2]
[352289760,1739028681712,2205.48,9.997e-05,2]
[352289761,1739028681745,500.0,9.997e-05,2]
[352289762,1739028682031,500.0,9.997e-05,2]
[352289763,1739028682278,311.079,8.851e-05,2]
[352289764,1739028687256,500.0,9.998e-05,2]
[352289765,1739028688378,1119.61,9.997e-05,2]
[352289766,1739028689154,500.0,9.998e-05,2]
[352289767,1739028690327,1073.78,9.997e-05,2]
[352289768,1739028690674,500.0,9.998e-05,2]
[352289769,1739028691609,527.3,9.997e-05,2]
[352289770,1739028692166,1200.53,9.997e-05,2]
[352289771,1739028692243,1307.4,9.997e-05,2]
[352289772,1739028692605,500.0,9.997e-05,2]
[352289773,1739028693603,918.72,9.998e-05,2]
[352289774,1739028694332,500.0,9.998e-05,2]
[352289775,1739028695100,500.0,9.998e-05,2]
[352289776,1739028696379,500.0,9.998e-05,2]
[352289777,1739028697273,500.0,9.997e-05,2]
[352289778,1739028698349,500.0,9.998e-05,2]
[352289779,1739028699438,1312.75,9.997e-05,2]
[352289780,1739028700093,500.0,9.997e-05,2]
[352289781,1739028700338,500.0,9.998e-05,2]
[352289782,1739028700601,1566.11,9.997e-05,2]
[352289783,1739028701006,500.0,9.998e-05,2]
[352289784,1739028702865,1742.18,9.997e-05,2]
[352289785,1739028704004,500.0,9.998e-05,2]
[352289786,1739028705160,500.0,9.997e-05,2]
[352289787,1739028706206,1144.7,9.997e-05,2]
[352289788,1739028706346,500.0,9.998e-05,2]
[352289789,1739028706637,500.0,9.997e-05,2]
[352289790,1739028708167,500.0,9.998e-05,2]
[352289791,1739028708775,518.49,9.997e-05,2]
[352289792,1739028709095,692.1,9.997e-05,2]
[352289793,1739028709848,500.0,9.997e-05,2]
[352289794,1739028709890,2220.05,9.997e-05,2]
[352289795,1739028710470,907.41,9.997e-05,2]
[352289796,1739028710699,500.0,9.998e-05,2]
[352289797,1739028711852,500.0,9.998e-05,2]
[352289798,1739028712178,846.89,9.997e-05,2]
[352289799,1739028716868,202.93245154,9.998e-05,2]
[352289800,1739028718507,1382.01,9.997e-05,2]
[352289801,1739028718541,795.01,9.998e-05,2]
[352289802,1739028718719,6481.34,9.997e-05,2]
[352289803,1739028720191,292.5381,8.699e-05,2]
[352289804,1739028721730,4232.57,9.997e-05,2]
[352289805,1739028722674,500.0,9.998e-05,2]
[352289806,1739028726309,500.0,9.998e-05,2]
[352289807,1739028726901,500.0,9.998e-05,2]
[352289808,1739028729007,500.0,9.998e-05,2]
[352289809,1739028730111,500.0,9.998e-05,2]
[352289810,1739028730142,500.23140016,9.998e-05,2]
[352289811,1739028730404,500.0,9.997e-05,2]
[352289812,1739028730599,500.0,9.997e-05,2]
[352289813,1739028732353,500.0,9.997e-05,2]
[352289814,1739028732719,1000.0,9.715e-05,2]
[352289815,1739028734367,500.0,9.997e-05,2]
[352289816,1739028734560,950.29,9.998e-05,2]
[352289817,1739028734796,7732.9234,8.836e-05,2]
[352289818,1739028736130,300.0,9.998e-05,2]
[352289819,1739028736722,1662.07,9.997e-05,2]
[352289820,1739028737481,730.42,9.997e-05,2]
[352289821,1739028737616,500.0,9.997e-05,2]
[352289822,1739028737986,500.0,9.998e-05,2]
[352289823,1739028738178,1224.04,9.997e-05,2]
[352289824,1739028739995,992.55,9.997e-05,2]
[352289825,1739028740787,500.0,9.998e-05,2]
[352289826,1739028741837,1038.51,9.997e-05,2]
[352289827,1739028742305,820.92,9.998e-05,2]
[352289828,1739028742953,500.0,9.997e-05,2]
[352289829,1739028743238,500.0,9.998e-05,2]
[352289830,1739028745617,1464.5185,8.973e-05,2]
[352289831,1739028745919,704.38,9.997e-05,2]
[352289832,1739028746355,1352.62,9.997e-05,2]
[352289833,1739028746663,500.0,9.997e-05,2]
[352289834,1739028747365,500.0,9.998e-05,2]
[352289835,1739028749383,500.0,9.998e-05,2]
[352289836,1739028750728,500.0,9.998e-05,2]
[352289837,1739028751216,500.0,9.997e-05,2]
[352289838,1739028751515,500.0,9.998e-05,2]
[352289839,1739028752615,901.3,9.998e-05,2]
[352289840,1739028754869,1429.46,9.997e-05,2]
[352289841,1739028754983,1996.9,9.997e-05,2]
[352289842,1739028755218,500.0,9.998e-05,2]
[352289843,1739028756901,2009.19,9.997e-05,2]
[352289844,1739028756992,2345.28,9.997e-05,2]
[352289845,1739028757352,503.39,9.997e-05,2]
[352289846,1739028758592,500.0,9.998e-05,2]
[352289847,1739028760103,953.17,9.997e-05,2]
[352289848,1739028760789,500.0,9.997e-05,2]
[352289849,1739028761753,586.88,9.997e-05,2]
[352289850,1739028763985,2902.86,9.997e-05,2]
[352289854,1739028766483,1584.73,9.997e-05,2]
[352289855,1739028767201,500.0,9.997e-05,2]
[352289856,1739028768008,500.0,9.997e-05,2]
[352289857,1739028768573,500.0,9.997e-05,2]
[352289858,1739028768993,688.82,9.998e-05,2]
[352289859,1739028769034,1119.69,9.997e-05,2]
[352289860,1739028770416,500.0,9.998e-05,2]
[352289861,1739028771789,500.0,9.997e-05,2]
[352289862,1739028772144,1098.15,9.997e-05,2]
[352289863,1739028772195,500.0,9.998e-05,2]
[352289864,1739028775678,159.16755749,9.998e-05,2]
[352289865,1739028775766,500.0,9.998e-05,2]
[352289866,1739028775963,866.78,9.997e-05,2]
[352289867,1739028776323,500.0,9.997e-05,2]
[352289868,1739028776539,500.0,9.997e-05,2]
[352289869,1739028777554,873.27,9.997e-05,2]
[352289871,1739028777901,513.21,9.997e-05,2]
[352289872,1739028779020,1499.71,9.997e-05,2]
[352289873,1739028779465,500.0,9.998e-05,2]
[352289874,1739028779586,935.87,9.998e-05,2]
[352289875,1739028779627,771.7,9.998e-05,2]
[352289876,1739028781052,1110.58,9.997e-05,2]
[352289877,1739028781168,755.74,9.997e-05,2]
[352289878,1739028781301,12408.3925,8.836e-05,2]
[352289879,1739028781932,500.0,9.998e-05,2]
[352289880,1739028783546,1875.96,9.997e-05,2]
[352289881,1739028784022,1963.08,9.997e-05,2]
[352289882,1739028784083,642.35838587,9.998e-05,2]
[352289883,1739028784117,681.67,9.998e-05,2]
[352289884,1739028784331,500.0,9.997e-05,2]
[352289885,1739028786146,2029.73,9.997e-05,2]
[352289886,1739028786232,500.0,9.998e-05,2]
[352289887,1739028786418,1241.98,9.997e-05,2]
[352289888,1739028787821,500.0,9.998e-05,2]
[352289889,1739028788100,500.17234236,9.998e-05,2]
[352289890,1739028788877,739.39,9.997e-05,2]
[352289891,1739028789948,500.579938,9.998e-05,2]
[352289892,1739028793232,500.0,9.998e-05,2]
[352289893,1739028794301,2130.0372,8.699e-05,2]
[352289894,1739028794927,500.0,9.997e-05,2]
[352289895,1739028795368,500.67870447,9.998e-05,2]
[352289896,1739028795741,500.0,9.998e-05,2]
[352289897,1739028795949,1157.2,9.997e-05,2]
[352289898,1739028796457,1758.94,9.997e-05,2]
[352289899,1739028797374,1704.94,9.997e-05,2]
[352289900,1739028797406,180.34395539,9.998e-05,2]
[352289901,1739028798440,500.0,9.997e-05,2]
[352289902,1739028799649,500.0,9.998e-05,2]
[352289903,1739028799737,593.95,9.998e-05,2]
[352289904,1739028800380,1068.2,9.997e-05,2]
[352289905,1739028800471,686.17,9.997e-05,2]
[352289906,1739028800865,500.0,9.998e-05,2]
[352289907,1739028802173,2643.76,9.997e-05,2]
[352289908,1739028804569,500.0,9.998e-05,2]
[352289909,1739028804691,698.96,9.997e-05,2]
[352289910,1739028805176,500.0,9.997e-05,2]
[352289911,1739028805644,500.0,9.998e-05,2]
[352289912,1739028806175,501.05749733,9.998e-05,2]
[352289913,1739028806353,859.14,9.997e-05,2]
[352289914,1739028807757,656.82,9.998e-05,2]
[352289915,1739028807790,752.2,9.998e-05,2]
[352289916,1739028807936,500.0,9.998e-05,2]
[352289917,1739028808146,502.38305079,9.998e-05,2]
[352289918,1739028808902,803.95,9.997e-05,2]
[352289919,1739028810781,500.0,9.998e-05,2]
[352289920,1739028812758,1525.74,9.997e-05,2]
[352289921,1739028813967,988.21,9.997e-05,2]
[352289922,1739028814236,599.37,9.997e-05,2]
[352289923,1739028816241,500.0,9.997e-05,2]
[352289924,1739028816277,500.0,9.998e-05,2]
[352289925,1739028817826,500.0,9.997e-05,2]
[352289926,1739028818633,500.0,9.998e-05,2]
[352289927,1739028818685,500.0,9.998e-05,2]
[352289928,1739028819372,1808.46,9.997e-05,2]
[352289929,1739028819728,763.32,9.997e-05,2]
[352289930,1739028821137,500.0,9.997e-05,2]
[352289931,1739028822167,520.30805979,9.998e-05,2]
[352289932,1739028822318,500.0,9.998e-05,2]
[352289933,1739028822551,500.0,9.998e-05,2]
[352289934,1739028823136,1701.08,9.997e-05,2]
[352289935,1739028823968,500.74431754,9.998e-05,2]
[352289936,1739028824598,887.37,9.997e-05,2]
[352289937,1739028825579,500.0,9.998e-05,2]
[352289938,1739028825884,500.65790391,9.998e-05,2]
[352289939,1739028827693,500.0,9.998e-05,2]
[352289940,1739028829788,1967.08,9.997e-05,2]
[352289941,1739028829982,500.0,9.998e-05,2]
[352289942,1739028831110,500.85837538,9.998e-05,2]
[352289943,1739028832121,1201.8,9.997e-05,2]
[352289944,1739028833791,500.0,9.997e-05,2]
[352289945,1739028834186,1908.04,9.997e-05,2]
[352289946,1739028834845,500.0,9.998e-05,2]
[352289947,1739028836837,602.94,9.997e-05,2]
[352289948,1739028837050,1000.0,9.997e-05,2]
[352289951,1739028840578,500.0,9.997e-05,2]
[352289952,1739028840677,500.0,9.998e-05,2]
[352289953,1739028841100,729.78,9.997e-05,2]
[352289954,1739028844194,1106.14,9.997e-05,2]
[352289955,1739028844335,687.94,9.997e-05,2]
[352289956,1739028844729,501.86881783,9.998e-05,2]
[352289957,1739028845904,500.0,9.997e-05,2]
[352289958,1739028846212,500.0,9.997e-05,2]
[352289959,1739028846660,500.0,9.998e-05,2]
[352289960,1739028848659,501.05371773,9.998e-05,2]
[352289961,1739028849738,1174.97,9.997e-05,2]
[352289962,1739028852575,500.0,9.997e-05,2]
[352289963,1739028852607,500.0,9.998e-05,2]
[352289964,1739028853056,500.0,9.997e-05,2]
[352289965,1739028855400,949.3,9.997e-05,2]
[352289966,1739028855627,414.41512563,9.997e-05,2]
[352289967,1739028857359,7251.41,9.997e-05,2]
[352289968,1739028857893,1712.05,9.997e-05,2]
[352289969,1739028859631,500.0,9.997e-05,2]
[352289970,1739028860112,1179.26,9.997e-05,2]
[352289971,1739028861236,500.0,9.997e-05,2]
[352289972,1739028862256,737.63,9.997e-05,2]
[352289973,1739028862297,872.26,9.997e-05,2]
[352289974,1739028862646,500.0,9.998e-05,2]
[352289975,1739028864046,550.80994964,9.998e-05,2]
[352289976,1739028864109,500.0,9.998e-05,2]
[352289977,1739028865849,500.92095244,9.998e-05,2]
[352289978,1739028867322,500.0,9.998e-05,2]
[352289979,1739028868706,500.0,9.998e-05,2]
[352289980,1739028869044,500.0,9.997e-05,2]
[352289981,1739028870093,661.73,9.997e-05,2]
[352289982,1739028870155,1503.17,9.997e-05,2]
[352289983,1739028870188,818.49,9.997e-05,2]
[352289984,1739028870579,2020.7,9.997e-05,2]
[352289985,1739028872207,500.0,9.997e-05,2]
[352289986,1739028872586,500.72943066,9.998e-05,2]
[352289987,1739028874591,500.0,9.998e-05,2]
[352289988,1739028874860,1237.35,9.997e-05,2]
[352289989,1739028877562,794.36,9.997e-05,2]
[352289990,1739028878153,500.0,9.998e-05,2]
[352289991,1739028880948,1355.54,9.997e-05,2]
[352289992,1739028883301,500.0,9.998e-05,2]
[352289993,1739028883465,500.0,9.997e-05,2]
[352289994,1739028883530,1072.96,9.997e-05,2]
[352289995,1739028885254,165.34,9.549e-05,2]
[352289996,1739028886381,687.54,9.997e-05,2]
[352289997,1739028890165,500.0,9.997e-05,2]
[352289998,1739028891398,647.11,9.998e-05,2]
[352289999,1739028891489,679.61,9.997e-05,2]
[352290000,1739028891654,500.0,9.997e-05,2]
[352290001,1739028893124,502.06,9.998e-05,2]
[352290002,1739028893323,953.21,9.997e-05,2]
[352290003,1739028893589,1500.86,9.997e-05,2]
[352290004,1739028895095,879.14,9.997e-05,2]
[352290005,1739028895979,500.0,9.997e-05,2]
[352290006,1739028900004,675.29,9.997e-05,2]
[352290007,1739028901714,1879.9,9.997e-05,2]
[352290008,1739028901749,500.0,9.998e-05,2]
[352290009,1739028902129,746.37,9.997e-05,2]
[352290010,1739028902234,2127.55,9.997e-05,2]
[352290011,1739028903238,816.31,9.998e-05,2]
[352290012,1739028903315,500.0,9.997e-05,2]
[352290013,1739028904239,483.0,9.997e-05,30]
[352290014,1739028904524,500.65078447,9.997e-05,2]
[352290015,1739028904561,483.0,0.00010629,30]
[352290016,1739028904862,483.0,0.0001126,30]
[352290017,1739028905162,483.0,0.00011892,30]
[352290018,1739028905255,836.98,9.997e-05,2]
[352290019,1739028905457,483.0,0.00012524,30]
[352290020,1739028905515,501.33314188,9.998e-05,2]
[352290021,1739028906373,500.58906704,9.997e-05,2]
[352290022,1739028908001,786.01,9.997e-05,2]
[352290023,1739028910505,1847.67,9.997e-05,2]
[352290024,1739028911205,6211.28,9.997e-05,2]
[352290025,1739028912604,500.0,9.997e-05,2]
[352290026,1739028916295,710.9,9.997e-05,2]
[352290027,1739028916561,617.99,9.997e-05,2]
[352290028,1739028917815,500.0,9.997e-05,2]
[352290029,1739028918532,799.32,9.997e-05,2]
[352290030,1739028919639,500.0,9.997e-05,2]
[352290031,1739028921092,500.0,9.998e-05,2]
[352290032,1739028921549,805.55,9.997e-05,2]
[352290033,1739028922471,934.48,9.997e-05,2]
[352290034,1739028922512,1007.83,9.997e-05,2]
[352290035,1739028925026,1365.5274,8.836e-05,2]
[352290036,1739028925360,1802.8374,8.836e-05,2]
[352290037,1739028925403,527.39,9.997e-05,2]
[352290038,1739028925932,623.1,9.998e-05,2]
[352290039,1739028931877,1243.82,9.997e-05,2]
[352290040,1739028932891,951.19,9.997e-05,2]
[352290041,1739028933144,500.0,9.997e-05,2]
[352290042,1739028933314,500.0,9.997e-05,2]
[352290043,1739028933997,500.0,9.998e-05,2]
[352290044,1739028934660,2113.58,9.997e-05,2]
[352290045,1739028934840,500.0,9.997e-05,2]
[352290046,1739028937951,500.0,9.997e-05,2]
[352290047,1739028939208,367.38,9.549e-05,2]
[352290048,1739028944344,500.0,9.997e-05,2]
[352290049,1739028944770,543.22,9.998e-05,2]
[352290050,1739028945834,1150.51,9.997e-05,2]
[352290051,1739028946428,583.22,9.997e-05,2]
[352290052,1739028948768,500.0,9.998e-05,2]
[352290053,1739028949777,768.94,9.997e-05,2]
[352290054,1739028950993,178.8849,8.836e-05,2]
[352290055,1739028951826,500.0,9.997e-05,2]
[352290056,1739028952796,913.46,9.997e-05,2]
[352290057,1739028955648,1029.04,9.997e-05,2]
[352290058,1739028956005,500.0,9.998e-05,2]
[352290059,1739028956487,500.0,9.997e-05,2]
[352290060,1739028957619,1669.59,9.997e-05,2]
[352290061,1739028958746,795.11,9.997e-05,2]
[352290062,1739028961069,500.0,9.997e-05,2]
[352290063,1739028964234,888.98,9.998e-05,2]
[352290064,1739028964339,1258.05,9.997e-05,2]
[352290065,1739028968173,555.97,9.997e-05,2]
[352290066,1739028970315,822.09,9.997e-05,2]
[352290067,1739028971235,836.88,9.997e-05,2]
[352290068,1739028972944,714.26,9.998e-05,2]
[352290069,1739028973645,1324.42,9.997e-05,2]
[352290070,1739028975262,869.61,9.997e-05,2]
[352290071,1739028975895,2385.51,9.997e-05,2]
[352290072,1739028976201,500.0,9.997e-05,2]
[352290073,1739028982560,500.0,9.997e-05,2]
[352290074,1739028982911,1173.04,9.997e-05,2]
[352290075,1739028984275,520.17,9.997e-05,2]
[352290076,1739028987318,500.0,9.997e-05,2]
[352290077,1739028987584,1252.92,9.997e-05,2]
[352290078,1739028987780,657.58,9.997e-05,2]
[352290079,1739028991033,500.0,9.998e-05,2]
[352290080,1739028991824,500.0,9.997e-05,2]
[352290081,1739028992554,1592.82,9.997e-05,2]
[352290082,1739028993022,840.31,9.998e-05,2]
[352290083,1739028995281,1208.38,9.997e-05,2]
[352290084,1739028996570,500.0,9.997e-05,2]
[352290085,1739029001137,1462.17,9.997e-05,2]
[352290086,1739029002111,500.0,9.997e-05,2]
[352290087,1739029002191,775.59,9.998e-05,2]
[352290088,1739029002280,1925.48,9.997e-05,2]
[352290089,1739029002581,1296.26,9.997e-05,2]
[352290090,1739029003082,1097.0,9.997e-05,2]
[352290091,1739029005636,500.0,9.997e-05,2]
[352290092,1739029006868,1099.69,9.997e-05,2]
[352290093,1739029010236,248.49019751,9.997e-05,2]